bitfinex/quotes_SOLUSD_20241210
["timestamp","ask_amount","ask_price","bid_price","bid_amount"]
[1733795840611,1.6287,219.41,219.32,13.72227669]
[1733795841129,20.0,219.37,219.27,13.72227669]
[1733795841634,20.0,219.37,219.28,13.72227669]
[1733795844105,20.0,219.37,219.2,31.4048]
[1733795844106,20.0,219.37,219.26,13.72227669]
[1733795844341,1.6287,219.36,219.26,13.72227669]
[1733795846152,20.0,219.32,219.16,11.407]
[1733795846435,20.0,219.32,219.19,13.72227669]
[1733795846640,1.501,219.31,219.19,13.72227669]
[1733795846944,1.501,219.31,219.2,13.72227669]
[1733795847530,1.501,219.31,219.24,13.72227669]
[1733795847735,1.501,219.31,219.25,13.72227669]
[1733795848417,1.501,219.31,219.26,13.72227669]
[1733795848620,1.501,219.31,219.25,13.72227669]
[1733795850115,1.501,219.31,219.24,13.72227669]
[1733795850317,1.501,219.31,219.22,13.72227669]
[1733795850530,1.501,219.31,219.21,13.72227669]
[1733795851523,1.501,219.31,219.23,13.72227669]
[1733795851734,1.501,219.31,219.22,13.72227669]
[1733795855445,1.501,219.31,219.22,8.79229098]
[1733795855793,1.501,219.31,219.25,8.79229098]
[1733795855940,1.501,219.31,219.18,0.12549]
[1733795855941,1.501,219.31,219.26,8.79229098]
[1733795856124,1.501,219.31,219.24,8.79229098]
[1733795857249,1.501,219.31,219.17,11.4066]
[1733795857250,1.501,219.31,219.23,8.79229098]
[1733795857442,1.501,219.31,219.21,8.79229098]
[1733795857655,6.3579,219.3,219.13,11.4085]
[1733795857830,20.0,219.27,219.16,8.79229098]
[1733795858226,1.501,219.26,219.14,8.79229098]
[1733795858419,1.501,219.26,219.12,8.79229098]
[1733795858631,1.501,219.26,219.09,312.0]
[1733795858834,1.501,219.26,219.12,8.79229098]
[1733795859555,1.501,219.26,219.13,8.79229098]
[1733795859950,1.501,219.26,219.16,8.79229098]
[1733795860145,1.501,219.26,219.07,21.82308051]
[1733795860146,1.501,219.26,219.17,8.79229098]
[1733795860357,1.501,219.26,219.16,8.79229098]
[1733795861162,1.501,219.26,219.16,13.74507928]
[1733795862034,1.501,219.26,219.16,0.12549]
[1733795862649,1.501,219.26,219.15,13.74507928]
[1733795862847,1.501,219.26,219.15,0.12549]
[1733795863049,1.501,219.26,219.15,13.87056928]
[1733795863251,1.501,219.26,219.16,13.74507928]
[1733795863549,1.501,219.26,219.17,13.74507928]
[1733795863947,1.501,219.26,219.19,13.74507928]
[1733795864166,1.501,219.26,219.22,13.74507928]
[1733795864343,1.501,219.26,219.23,13.74507928]
[1733795864852,1.501,219.26,219.24,13.87056928]
[1733795865259,1.501,219.26,219.21,13.74507928]
[1733795865450,1.501,219.26,219.22,0.12549]
[1733795865978,1.501,219.26,219.23,13.74507928]
[1733795866754,1.501,219.26,219.22,0.12549]
[1733795866755,1.501,219.26,219.24,13.87056928]
[1733795866951,6.3579,219.3,219.24,13.74507928]
[1733795867171,6.3579,219.3,219.16,11.4071]
[1733795867172,6.3579,219.3,219.23,13.74507928]
[1733795867475,1.6033,219.31,219.25,13.74507928]
[1733795867652,1.6033,219.31,219.26,13.74507928]
[1733795869168,1.6033,219.31,219.25,13.74507928]
[1733795870064,1.1033,219.31,219.24,13.74507928]
[1733795871646,1.1033,219.31,219.25,13.87056928]
[1733795871853,1.1033,219.31,219.23,0.12549]
[1733795871854,1.1033,219.31,219.26,13.74507928]
[1733795874152,1.1033,219.31,219.25,13.74507928]
[1733795875796,1.1033,219.31,219.26,13.74507928]
[1733795877369,1.1033,219.31,219.25,13.74507928]
[1733795878170,1.1033,219.31,219.23,0.12549]
[1733795878171,1.1033,219.31,219.28,13.74507928]
[1733795878355,6.022,219.34,219.29,13.74507928]
[1733795878866,6.022,219.34,219.28,13.74507928]
[1733795879952,6.022,219.34,219.27,13.74507928]
[1733795880174,6.022,219.34,219.28,0.12549]
[1733795881986,1.6033,219.36,219.31,8.78782121]
[1733795882196,1.6033,219.36,219.33,8.78782121]
[1733795882597,6.3534,219.4,219.35,8.78782121]
[1733795883697,1.5865,219.41,219.36,0.12549]
[1733795884099,1.5865,219.41,219.36,8.91331121]
[1733795886000,1.5865,219.41,219.37,8.78782121]
[1733795886502,1.5865,219.41,219.36,8.91331121]
[1733795886994,1.5865,219.41,219.27,11.4014]
[1733795887176,1.5865,219.41,219.3,8.78782121]
[1733795888001,1.5865,219.41,219.29,8.78782121]
[1733795888296,1.5865,219.41,219.27,8.78782121]
[1733795889304,1.5865,219.41,219.28,13.73100521]
[1733795889604,20.0,219.37,219.28,13.73100521]
[1733795889805,20.0,219.37,219.26,13.73100521]
[1733795890610,1.6281,219.36,219.15,11.4073]
[1733795890901,20.0,219.32,219.2,13.73100521]
[1733795891104,20.0,219.32,219.21,13.73100521]
[1733795892382,1.6281,219.31,219.18,13.73100521]
[1733795892599,1.6281,219.31,219.16,13.73100521]
[1733795892600,20.0,219.27,219.16,13.73100521]
[1733795893209,20.0,219.27,219.17,13.73100521]
[1733795893398,20.0,219.27,219.2,13.73100521]
[1733795893905,6.197,219.3,219.2,13.73100521]
[1733795894316,6.197,219.3,219.22,13.73100521]
[1733795894981,6.197,219.3,219.24,13.73100521]
[1733795895196,6.197,219.3,219.25,13.73100521]
[1733795895411,6.197,219.3,219.26,13.73100521]
[1733795895786,6.197,219.3,219.25,13.73100521]
[1733795896997,6.197,219.3,219.26,13.73100521]
[1733795897310,1.6281,219.31,219.28,13.73100521]
[1733795899509,1.6281,219.31,219.27,13.73100521]
[1733795899683,1.6281,219.31,219.24,13.85649521]
[1733795900494,1.6281,219.31,219.23,13.73100521]
[1733795900691,1.6281,219.31,219.22,13.73100521]
[1733795901002,1.6281,219.31,219.18,13.73100521]
[1733795902400,1.6281,219.31,219.22,13.73100521]
[1733795902606,1.6281,219.31,219.19,0.12549]
[1733795902607,1.6281,219.31,219.23,13.73100521]
[1733795902897,1.6281,219.31,219.25,0.12549]
[1733795903790,1.6281,219.31,219.27,13.85649521]
[1733795904311,1.6281,219.31,219.28,13.73100521]
[1733795904497,1.6281,219.31,219.27,0.12549]
[1733795906311,1.6281,219.31,219.26,312.0]
[1733795906519,1.6281,219.31,219.25,0.12549]
[1733795907016,1.6281,219.31,219.25,13.85649521]
[1733795908194,1.6281,219.31,219.25,0.12549]
[1733795910329,1.6281,219.31,219.24,0.12549]
[1733795910708,1.6281,219.31,219.21,13.73100521]
[1733795912219,1.6281,219.31,219.24,13.73100521]
[1733795912401,1.6281,219.31,219.25,0.12549]
[1733795914221,1.6281,219.31,219.23,13.85649521]
[1733795915926,1.6281,219.31,219.24,13.73100521]
[1733795916391,1.6281,219.31,219.25,0.12549]
[1733795917420,1.6299,219.26,219.09,7.09641449]
[1733795917622,20.0,219.22,219.08,13.73100521]
[1733795917925,1.6299,219.21,219.08,13.73100521]
[1733795918120,1.6299,219.21,219.09,13.73100521]
[1733795918491,1.6299,219.21,219.1,13.73100521]
[1733795918798,1.6299,219.21,219.11,13.73100521]
[1733795919119,1.6299,219.21,219.12,13.73100521]
[1733795919899,1.6299,219.21,219.13,13.73100521]
[1733795920101,1.6299,219.21,219.17,13.73100521]
[1733795920618,1.6299,219.21,219.16,13.73100521]
[1733795920930,1.6299,219.21,219.17,13.73100521]
[1733795921101,1.6299,219.21,219.16,13.73100521]
[1733795921304,1.6299,219.21,219.17,0.12549]
[1733795927828,1.6299,219.21,219.18,13.73100521]
[1733795928014,1.6099,219.27,219.21,0.12549]
[1733795928923,1.6099,219.27,219.2,13.73100521]
[1733795929241,1.6099,219.27,219.2,0.12549]
[1733795929543,1.6099,219.27,219.23,13.73100521]
[1733795929712,1.6099,219.27,219.22,13.73100521]
[1733795929913,1.6099,219.27,219.21,13.73100521]
[1733795930863,1.1099,219.27,219.21,13.73100521]
[1733795931039,1.1099,219.27,219.21,325.73100521]
[1733795931215,1.1099,219.27,219.19,0.12549]
[1733795931216,21.1099,219.27,219.19,0.12549]
[1733795932508,1.1099,219.27,219.24,13.73100521]
[1733795932916,1.1099,219.27,219.21,13.73100521]
[1733795933437,1.1099,219.27,219.22,0.12549]
[1733795933640,1.1099,219.27,219.23,13.85649521]
[1733795933817,6.5008,219.3,219.25,0.12549]
[1733795934023,1.6099,219.33,219.26,13.73100521]
[1733795935011,1.6099,219.33,219.27,0.12549]
[1733795935846,1.6099,219.33,219.28,13.85649521]
[1733795936233,1.6099,219.33,219.28,0.12549]
[1733795936544,1.6099,219.33,219.27,0.12549]
[1733795937848,1.6099,219.33,219.27,13.73100521]
[1733795938022,1.6099,219.33,219.28,0.12549]
[1733795938855,1.6099,219.33,219.19,11.79641705]
[1733795938856,20.0,219.32,219.21,13.73100521]
[1733795939140,20.0,219.32,219.15,11.4077]
[1733795939141,20.0,219.32,219.18,13.73100521]
[1733795939646,20.0,219.32,219.19,13.73100521]
[1733795939938,20.0,219.32,219.2,13.73100521]
[1733795940615,20.0,219.32,219.24,0.12549]
[1733795941439,20.0,219.32,219.23,0.12549]
[1733795943054,20.0,219.32,219.19,325.73100521]
[1733795943343,20.0,219.32,219.19,0.12549]
[1733795944226,20.0,219.32,219.17,13.73100521]
[1733795944445,20.0,219.28,219.14,13.73100521]
[1733795944652,1.6099,219.27,219.13,13.73100521]
[1733795946031,1.6099,219.27,219.14,13.85649521]
[1733795946238,1.6099,219.27,219.13,13.73100521]
[1733795946422,20.0,219.23,219.11,13.73100521]
[1733795947429,20.0,219.23,219.09,13.73100521]
[1733795947430,1.6099,219.22,219.09,13.73100521]
[1733795947833,1.6099,219.22,219.07,13.73100521]
[1733795948039,20.0,219.18,219.07,13.73100521]
[1733795948226,20.0,219.18,219.06,13.73100521]
[1733795948549,1.6099,219.17,219.06,13.73100521]
[1733795948736,1.6099,219.17,218.98,11.4164]
[1733795948737,1.6099,219.17,219.04,13.73100521]
[1733795948936,1.6099,219.17,219.05,13.73100521]
[1733795949151,1.6099,219.17,219.1,13.73100521]
[1733795949452,1.6099,219.17,219.11,13.73100521]
[1733795949632,1.6099,219.17,219.09,13.73100521]
[1733795949833,1.6099,219.17,219.1,0.12549]
[1733795950669,1.6099,219.17,219.07,13.73100521]
[1733795950828,1.6099,219.17,219.07,0.12549]
[1733795951456,1.6099,219.17,219.04,13.73100521]
[1733795951953,1.6099,219.17,219.05,13.73100521]
[1733795952331,1.6099,219.17,219.04,13.73100521]
[1733795953379,1.6099,219.17,219.05,0.12549]
[1733795954254,1.6099,219.17,219.08,13.73100521]
[1733795954458,1.6099,219.17,219.09,13.73100521]
[1733795954755,1.6099,219.17,219.06,0.12549]
[1733795954939,1.6099,219.17,219.05,0.12549]
[1733795955452,1.6099,219.17,219.04,0.12549]
[1733795955860,1.6173,219.12,219.0,13.73100521]
[1733795956050,1.6173,219.12,218.99,13.73100521]
[1733795957253,1.6173,219.12,219.01,13.73100521]
[1733795957463,1.6173,219.12,219.03,13.73100521]
[1733795957958,1.6173,219.12,219.04,0.12549]
[1733795958375,1.6173,219.12,219.06,13.73100521]
[1733795958539,1.6173,219.12,219.06,0.12549]
[1733795958858,1.6173,219.12,219.01,13.73100521]
[1733795959067,1.6173,219.12,218.98,13.73100521]
[1733795959237,1.6173,219.09,218.89,0.5330683]
[1733795959442,1.6173,219.09,218.93,13.73100521]
[1733795959654,20.0,219.08,218.93,13.73100521]
[1733795959859,20.0,219.08,218.95,13.73100521]
[1733795960157,20.0,219.08,218.96,13.73100521]
[1733795960859,20.0,219.08,218.99,13.73100521]
[1733795961041,1.6173,219.09,219.01,13.73100521]
[1733795961364,1.6173,219.09,219.02,13.73100521]
[1733795961663,1.6173,219.09,219.02,0.12549]
[1733795962165,1.6173,219.09,219.02,13.85649521]
[1733795962662,20.0,219.08,219.02,13.85649521]
[1733795963255,20.0,219.08,219.03,13.73100521]
[1733795963836,1.6173,219.09,219.04,13.85649521]
[1733795964033,1.6173,219.09,219.04,0.12549]
[1733795964468,1.6173,219.09,219.02,0.12549]
[1733795964873,1.6173,219.09,219.02,13.85649521]
[1733795965183,1.6173,219.09,219.03,13.73100521]
[1733795965561,1.6173,219.09,219.02,13.73100521]
[1733795965886,1.6173,219.09,219.03,0.12549]
[1733795966779,1.6173,219.09,219.02,0.12549]
[1733795967762,20.0,219.08,219.02,0.12549]
[1733795968157,1.6173,219.09,219.03,13.73100521]
[1733795968358,1.6173,219.09,219.04,0.12549]
[1733795968783,1.6173,219.09,219.06,0.12549]
[1733795969095,1.6173,219.09,219.06,13.85649521]
[1733795969266,1.5595,219.14,219.08,13.85649521]
[1733795969478,1.5595,219.14,219.08,0.12549]
[1733795970264,1.5595,219.14,219.07,0.12549]
[1733795970788,20.0,219.13,219.06,0.12549]
[1733795970962,20.0,219.13,219.05,0.12549]
[1733795971362,20.0,219.13,219.04,13.85649521]
[1733795971587,20.0,219.13,219.05,13.73100521]
[1733795971887,20.0,219.13,219.06,0.12549]
[1733795972870,20.0,219.13,219.06,13.85649521]
[1733795973068,1.5595,219.14,219.08,0.12549]
[1733795973273,20.0,219.13,219.08,0.12549]
[1733795973873,20.0,219.13,219.07,0.12549]
[1733795974578,20.0,219.13,219.07,13.85649521]
[1733795977770,20.0,219.13,219.06,0.12549]
[1733795977972,20.0,219.13,219.05,0.12549]
[1733795978280,1.5595,219.14,219.07,13.85649521]
[1733795978465,20.0,219.13,219.09,13.73100521]
[1733795979881,20.0,219.13,219.1,13.85649521]
[1733795980290,1.5595,219.14,219.12,13.73100521]
[1733795980503,13.69,219.34,219.1,0.12549]
[1733795980504,1.614,219.19,219.13,13.85649521]
[1733795980698,1.614,219.19,219.15,13.73100521]
[1733795982985,1.614,219.19,219.17,13.73100521]
[1733795983708,20.0,219.24,219.17,13.73100521]
[1733795984003,20.0,219.24,219.15,13.73100521]
[1733795984192,20.0,219.24,219.14,13.73100521]
[1733795984375,20.0,219.24,219.15,0.12549]
[1733795984577,20.0,219.24,219.12,13.73100521]
[1733795984977,20.0,219.24,219.11,13.73100521]
[1733795985208,20.0,219.24,219.1,13.73100521]
[1733795985707,20.0,219.24,219.09,13.73100521]
[1733795986294,20.0,219.24,219.1,0.12549]
[1733795987883,20.0,219.24,219.1,13.85649521]
[1733795988082,20.0,219.24,219.12,13.73100521]
[1733795988283,20.0,219.24,219.14,13.73100521]
[1733795990284,20.0,219.24,219.14,0.12549]
[1733795992578,20.0,219.24,219.1,13.73100521]
[1733795992777,20.0,219.24,219.12,13.73100521]
[1733795993004,20.0,219.24,219.11,13.73100521]
[1733795993884,20.0,219.24,219.12,0.12549]
[1733795994084,20.0,219.24,219.12,13.85649521]
[1733795998035,20.0,219.24,219.12,0.12549]
[1733796000102,1.614,219.25,219.16,0.12549]
[1733796000604,1.614,219.25,219.12,13.73100521]
[1733796000808,1.614,219.25,219.11,0.12549]
[1733796001125,1.614,219.25,219.14,13.73100521]
[1733796001500,20.0,219.24,219.14,13.73100521]
[1733796001811,20.0,219.24,219.11,0.12549]
[1733796002015,8.04023863,219.27,219.1,0.12549]
[1733796002016,7.9549,219.23,219.1,0.12549]
[1733796002219,20.0,219.2,219.07,13.73100521]
[1733796002531,1.6644,219.19,219.06,13.73100521]
[1733796002694,1.6644,219.19,219.07,13.73100521]
[1733796003346,20.0,219.15,219.04,13.73100521]
[1733796003502,20.0,219.15,219.0,13.73100521]
[1733796003503,6.2905,219.13,219.0,13.73100521]
[1733796003696,20.0,219.1,218.98,13.73100521]
[1733796003918,1.6644,219.09,218.98,13.73100521]
[1733796004898,1.6644,219.09,219.01,13.73100521]
[1733796005124,1.6644,219.09,219.0,13.73100521]
[1733796005308,1.6644,219.09,218.99,13.73100521]
[1733796006194,1.6644,219.09,218.98,13.73100521]
[1733796006808,1.6644,219.09,218.96,13.73100521]
[1733796007122,6.2905,219.08,218.95,13.85649521]
[1733796007424,20.0,219.05,218.94,13.73100521]
[1733796008202,1.6644,219.04,218.92,13.73100521]
[1733796008416,1.6644,219.04,218.9,13.73100521]
[1733796008807,6.2905,219.03,218.89,14.26407351]
[1733796009000,20.0,219.0,218.89,0.5330683]
[1733796009427,1.6644,218.99,218.89,0.5330683]
[1733796010136,1.6644,218.99,218.93,13.73100521]
[1733796010335,1.6644,218.99,218.95,13.73100521]
[1733796010506,1.6644,218.99,218.89,0.5330683]
[1733796010713,1.6644,218.99,218.95,13.73100521]
[1733796011027,6.2905,219.03,218.9,13.73100521]
[1733796011028,6.2905,219.03,218.98,13.73100521]
[1733796011244,1.6187,219.05,219.0,13.73100521]
[1733796011434,1.6187,219.05,218.99,13.73100521]
[1733796011603,1.6187,219.05,218.98,13.73100521]
[1733796011806,1.6187,219.05,218.99,0.12549]
[1733796012137,1.6187,219.05,219.0,13.73100521]
[1733796012440,1.6187,219.05,218.99,13.85649521]
[1733796012740,1.6187,219.05,218.98,0.12549]
[1733796013111,1.6187,219.05,219.0,0.12549]
[1733796013310,1.6187,219.05,219.0,13.85649521]
[1733796013627,1.6187,219.05,219.0,0.12549]
[1733796013833,1.6187,219.05,218.97,13.73100521]
[1733796014133,1.6187,219.05,218.97,13.85649521]
[1733796014307,1.6187,219.05,219.0,0.12549]
[1733796015625,1.6187,219.05,219.02,13.73100521]
[1733796015832,6.3568,219.09,219.03,13.85649521]
[1733796016040,1.6187,219.1,219.07,0.12549]
[1733796016336,7.9755,219.15,219.09,0.12549]
[1733796016709,7.9755,219.15,219.08,0.12549]
[1733796016912,7.9755,219.15,219.13,0.12549]
[1733796016913,1.6187,219.15,219.13,0.12549]
[1733796017132,6.3568,219.21,219.13,0.12549]
[1733796017330,7.9755,219.21,219.16,0.12549]
[1733796017716,1.6187,219.21,219.16,13.85649521]
[1733796018146,1.6187,219.21,219.13,0.12549]
[1733796018439,1.6187,219.21,219.08,0.12549]
[1733796018645,6.3568,219.2,219.04,13.73100521]
[1733796018944,1.6187,219.19,219.03,13.73100521]
[1733796019107,20.0,219.17,219.03,13.73100521]
[1733796019312,20.0,219.17,219.03,22.01900236]
[1733796019512,20.0,219.17,219.05,22.01900236]
[1733796019708,20.0,219.17,219.07,22.01900236]
[1733796021040,20.0,219.17,219.08,0.12549]
[1733796021215,20.0,219.17,219.08,22.14449236]
[1733796021530,20.0,219.17,219.07,0.12549]
[1733796021731,20.0,219.17,219.07,22.14449236]
[1733796022351,20.0,219.17,219.07,0.12549]
[1733796022845,20.0,219.17,219.07,22.14449236]
[1733796024314,20.0,219.17,219.03,312.0]
[1733796024315,20.0,219.17,219.03,22.01900236]
[1733796024514,20.0,219.16,219.02,22.01900236]
[1733796024744,20.0,219.11,219.0,22.01900236]
[1733796026350,20.0,219.11,219.07,22.01900236]
[1733796026650,20.0,219.11,219.08,22.01900236]
[1733796026818,6.3568,219.14,219.08,22.01900236]
[1733796027546,6.3568,219.14,219.06,22.01900236]
[1733796027724,6.3568,219.14,219.07,0.12549]
[1733796028043,6.3568,219.14,219.03,0.12549]
[1733796028044,20.0,219.11,219.03,0.12549]
[1733796028360,20.0,219.11,219.0,22.01900236]
[1733796028948,20.0,219.11,218.92,11.4191]
[1733796028949,20.0,219.11,218.99,22.01900236]
[1733796029828,20.0,219.11,219.0,0.12549]
[1733796031448,1.6514,219.1,219.0,0.12549]
[1733796031657,1.6514,219.1,218.99,0.12549]
[1733796032146,1.6514,219.1,218.97,22.01900236]
[1733796032345,26.3107,219.09,218.95,22.01900236]
[1733796032754,20.0,219.07,218.92,22.01900236]
[1733796032926,20.0,219.06,218.91,22.01900236]
[1733796033128,1.7822052,219.12,218.89,0.5330683]
[1733796033129,20.0,219.02,218.89,0.5330683]
[1733796033352,6.3107,218.99,218.89,0.5330683]
[1733796033569,20.0,218.96,218.89,0.5330683]
[1733796033760,6.3107,218.99,218.94,22.01900236]
[1733796034052,21.6514,219.01,218.96,22.01900236]
[1733796034555,21.6514,219.01,218.91,312.0]
[1733796034760,21.6514,219.01,218.93,22.01900236]
[1733796035053,21.6514,219.01,218.95,22.01900236]
[1733796035257,21.6514,219.01,218.94,22.01900236]
[1733796035552,21.6514,219.01,218.92,22.01900236]
[1733796035734,21.6514,219.01,218.93,0.12549]
[1733796036064,21.6514,219.01,218.94,22.01900236]
[1733796036246,21.6514,219.01,218.96,22.01900236]
[1733796036446,21.6514,219.01,218.94,22.01900236]
[1733796037340,21.6514,219.01,218.95,22.01900236]
[1733796037654,21.6514,219.01,218.96,0.12549]
[1733796038453,21.6514,219.01,218.89,312.5330683]
[1733796038454,21.6514,219.01,218.92,22.01900236]
[1733796038650,21.6514,219.01,218.93,0.12549]
[1733796038844,21.6514,219.01,218.91,22.01900236]
[1733796039050,21.6514,219.01,218.89,0.5330683]
[1733796039640,20.0,218.97,218.89,0.5330683]
[1733796040871,1.5447,218.96,218.89,0.5330683]
[1733796043593,21.5447,218.96,218.89,0.5330683]
[1733796043983,6.4211,218.94,218.89,0.5330683]
[1733796044277,20.0,218.91,218.89,0.5330683]
[1733796045061,20.0,218.91,218.83,0.12549]
[1733796045252,20.0,218.91,218.82,0.12549]
[1733796045460,20.0,218.91,218.8,13.78155874]
[1733796045673,20.0,218.91,218.81,0.12549]
[1733796046456,1.5447,218.9,218.78,13.78155874]
[1733796046665,1.5447,218.9,218.79,13.78155874]
[1733796046866,1.5447,218.9,218.8,13.78155874]
[1733796047382,1.51274091,218.9,218.78,13.78155874]
[1733796047567,1.51274091,218.9,218.7,13.781559]
[1733796047568,1.51274091,218.9,218.77,13.78155874]
[1733796048078,1.51274091,218.9,218.69,1.5945]
[1733796048079,6.4211,218.88,218.74,13.78155874]
[1733796048396,20.0,218.8,218.67,0.5330683]
[1733796049153,20.0,218.81,218.67,0.5330683]
[1733796049351,20.0,218.81,218.67,13.78155874]
[1733796049566,20.0,218.81,218.73,13.78155874]
[1733796049976,6.4211,218.84,218.75,13.78155874]
[1733796050182,6.4211,218.84,218.77,13.78155874]
[1733796050561,6.4211,218.84,218.78,0.12549]
[1733796050779,6.4211,218.84,218.77,0.12549]
[1733796051082,6.4211,218.84,218.76,13.78155874]
[1733796051254,6.4211,218.84,218.77,22.07317331]
[1733796051454,20.0,218.81,218.73,334.07317331]
[1733796051675,20.0,218.81,218.7,22.07317331]
[1733796051983,20.0,218.81,218.69,22.07317331]
[1733796052186,20.0,218.81,218.68,22.07317331]
[1733796052357,20.0,218.81,218.65,22.07317331]
[1733796052973,20.0,218.81,218.66,22.07317331]
[1733796053167,20.0,218.81,218.67,22.07317331]
[1733796053369,20.0,218.81,218.68,22.07317331]
[1733796053685,20.0,218.81,218.68,0.12549]
[1733796054063,20.0,218.81,218.68,22.19866331]
[1733796054576,20.0,218.81,218.68,334.19866331]
[1733796055564,20.0,218.81,218.68,312.12549]
[1733796055771,1.5447,218.8,218.66,22.19866331]
[1733796055975,1.5447,218.8,218.67,22.07317331]
[1733796056175,1.5447,218.8,218.68,0.12549]
[1733796056371,1.5447,218.8,218.65,22.07317331]
[1733796056578,1.5447,218.8,218.56,20.0]
[1733796056579,1.5447,218.8,218.64,22.07317331]
[1733796056780,21.5447,218.8,218.64,22.07317331]
[1733796056967,21.5447,218.8,218.65,22.07317331]
[1733796057479,20.0,218.76,218.64,22.07317331]
[1733796058378,20.0,218.76,218.63,22.07317331]
[1733796059394,1.5447,218.75,218.6,22.07317331]
[1733796059684,1.5447,218.75,218.61,0.12549]
[1733796060070,1.5447,218.75,218.59,22.07317331]
[1733796060271,20.0,218.71,218.59,22.07317331]
[1733796061391,20.0,218.71,218.6,22.07317331]
[1733796061578,20.0,218.71,218.59,22.07317331]
[1733796061772,20.0,218.71,218.59,0.12549]
[1733796061773,1.5447,218.7,218.59,0.12549]
[1733796062290,20.0,218.66,218.5,18.315337]
[1733796062503,20.0,218.66,218.54,22.07317331]
[1733796062679,20.0,218.66,218.55,22.07317331]
[1733796062877,20.0,218.66,218.56,22.07317331]
[1733796063179,20.0,218.66,218.55,22.07317331]
[1733796063382,1.5447,218.65,218.52,334.07317331]
[1733796063708,1.5447,218.65,218.54,22.07317331]
[1733796064189,1.5447,218.65,218.53,22.07317331]
[1733796064391,1.5447,218.65,218.52,312.0]
[1733796064890,1.5447,218.65,218.53,22.07317331]
[1733796065297,1.5447,218.65,218.51,22.07317331]
[1733796065602,20.0,218.61,218.51,22.07317331]
[1733796065790,20.0,218.61,218.52,22.07317331]
[1733796066202,20.0,218.61,218.54,22.07317331]
[1733796066395,20.0,218.61,218.53,22.07317331]
[1733796066582,20.0,218.61,218.54,0.12549]
[1733796067320,20.0,218.61,218.51,22.07317331]
[1733796067478,20.0,218.61,218.52,0.12549]
[1733796067804,20.0,218.61,218.51,22.07317331]
[1733796067805,1.5447,218.6,218.46,0.5330683]
[1733796067985,1.5447,218.6,218.47,22.07317331]
[1733796068504,1.5447,218.6,218.46,22.60624161]
[1733796068505,20.0,218.56,218.46,22.60624161]
[1733796069404,20.0,218.56,218.46,0.5330683]
[1733796070420,1.5162,218.55,218.46,0.5330683]
[1733796071322,20.0,218.51,218.46,0.5330683]
[1733796071491,1.5162,218.5,218.46,0.5330683]
[1733796072314,1.5162,218.5,218.36,22.07317331]
[1733796072823,20.0,218.46,218.34,22.07317331]
[1733796073122,20.0,218.46,218.36,22.07317331]
[1733796073307,20.0,218.46,218.37,22.07317331]
[1733796073539,20.0,218.46,218.35,22.07317331]
[1733796074103,20.0,218.46,218.34,22.07317331]
[1733796074303,1.5162,218.45,218.33,22.07317331]
[1733796074595,6.63059,218.44,218.31,22.07317331]
[1733796074815,20.0,218.41,218.29,22.07317331]
[1733796075327,20.0,218.41,218.31,22.07317331]
[1733796075500,20.0,218.41,218.29,22.07317331]
[1733796076322,20.0,218.41,218.27,22.07317331]
[1733796076520,1.5162,218.4,218.24,0.5330683]
[1733796077023,6.5051,218.38,218.24,0.5330683]
[1733796077200,20.0,218.35,218.24,0.5330683]
[1733796077397,1.5162,218.34,218.24,0.5330683]
[1733796078012,1.5162,218.34,218.27,22.07317331]
[1733796078226,1.5162,218.34,218.28,22.07317331]
[1733796078414,1.5162,218.34,218.24,22.60624161]
[1733796078817,1.5162,218.34,218.25,22.07317331]
[1733796079527,1.5162,218.34,218.24,22.60624161]
[1733796079900,1.5162,218.34,218.24,0.5330683]
[1733796082727,1.5162,218.34,218.29,22.07317331]
[1733796083609,1.5162,218.34,218.31,22.07317331]